[Event "Titled Tuesday Blitz September 27 Early 2022"]
[White "Terzi, Alexei"]
[Black "Al-Tarboush, Ward"]
[WhiteFideId "13505076"]
[BlackFideId "7601450"]
[WhiteElo "2739"]
[BlackElo "2538"]
[Result "1-0"]
[Round "07"]
[TimeControl "180+1"]
[Date "2022.09.27"]
[WhiteClock "0:00:44"]
[BlackClock "0:00:10"]

1. e4 {[%clk 0:03:00]}  c5 {[%clk 0:02:55]} 2. Nc3 {[%clk 0:03:00]}  Nc6 {[%clk 0:02:55]} 3. Bb5 {[%clk 0:03:00]}  e6 {[%clk 0:02:44]} 4. Bxc6 {[%clk 0:02:57]}  bxc6 {[%clk 0:02:45]} 5. d3 {[%clk 0:02:54]}  Ne7 {[%clk 0:02:37]} 6. f4 {[%clk 0:02:44]}  f6 {[%clk 0:02:34]} 7. Nf3 {[%clk 0:02:43]}  d6 {[%clk 0:02:33]} 8. O-O {[%clk 0:02:43]}  Ng6 {[%clk 0:02:18]} 9. Qe2 {[%clk 0:02:23]}  e5 {[%clk 0:02:10]} 10. f5 {[%clk 0:02:21]}  Ne7 {[%clk 0:02:08]} 11. g4 {[%clk 0:02:20]}  h6 {[%clk 0:01:59]} 12. Nh4 {[%clk 0:02:17]}  d5 {[%clk 0:01:57]} 13. Bd2 {[%clk 0:02:14]}  Ba6 {[%clk 0:01:47]} 14. b3 {[%clk 0:02:07]}  c4 {[%clk 0:01:39]} 15. bxc4 {[%clk 0:02:00]}  dxc4 {[%clk 0:01:38]} 16. dxc4 {[%clk 0:01:53]}  Qd4+ {[%clk 0:01:32]} 17. Qf2 {[%clk 0:01:46]}  Bxc4 {[%clk 0:01:22]} 18. Rfd1 {[%clk 0:01:43]}  Qxf2+ {[%clk 0:01:17]} 19. Kxf2 {[%clk 0:01:43]}  Nc8 {[%clk 0:01:18]} 20. Be3 {[%clk 0:01:36]}  Bb4 {[%clk 0:01:12]} 21. Na4 {[%clk 0:01:34]}  Bb5 {[%clk 0:00:55]} 22. Nc5 {[%clk 0:01:33]}  Bxc5 {[%clk 0:00:40]} 23. Bxc5 {[%clk 0:01:34]}  Nb6 {[%clk 0:00:29]} 24. Ng6 {[%clk 0:01:30]}  Rg8 {[%clk 0:00:28]} 25. Rd6 {[%clk 0:01:28]}  Nd7 {[%clk 0:00:25]} 26. Re6+ {[%clk 0:01:19]}  Kd8 {[%clk 0:00:26]} 27. Rd1 {[%clk 0:01:19]}  Kc7 {[%clk 0:00:22]} 28. Re7 {[%clk 0:01:12]}  Rad8 {[%clk 0:00:21]} 29. Bb4 {[%clk 0:01:07]}  c5 {[%clk 0:00:17]} 30. Ba5+ {[%clk 0:01:07]}  Kc8 {[%clk 0:00:16]} 31. Bxd8 {[%clk 0:01:06]}  Kxd8 {[%clk 0:00:17]} 32. Rb1 {[%clk 0:00:52]}  Bc6 {[%clk 0:00:15]} 33. Rd1 {[%clk 0:00:48]}  Kc7 {[%clk 0:00:14]} 34. h4 {[%clk 0:00:47]}  Rb8 {[%clk 0:00:14]} 35. Rxg7 {[%clk 0:00:45]}  Rb2 {[%clk 0:00:12]} 36. Rd2 {[%clk 0:00:43]}  Kc8 {[%clk 0:00:10]} 37. Ne7+ {[%clk 0:00:43]}  Kc7 {[%clk 0:00:10]} 38. Nxc6 {[%clk 0:00:43]}  Kxc6 {[%clk 0:00:10]} 39. Rgxd7 {[%clk 0:00:44]} 1-0


[Site "https://www.chess.com"]

[Event "Titled Tuesday Blitz September 27 Early 2022"]
[White "Urazayev, Arystanbek"]
[Black "Vokhidov, Shamsiddin"]
[WhiteFideId "13709810"]
[BlackFideId "14204223"]
[WhiteElo "2441"]
[BlackElo "2619"]
[Result "1-0"]
[Round "07"]
[TimeControl "180+1"]
[Date "2022.09.27"]
[WhiteClock "0:01:50"]
[BlackClock "0:01:35"]

1. e4 {[%clk 0:03:00]}  c5 {[%clk 0:03:00]} 2. Nf3 {[%clk 0:03:01]}  d6 {[%clk 0:03:00]} 3. d4 {[%clk 0:03:01]}  cxd4 {[%clk 0:03:01]} 4. Nxd4 {[%clk 0:03:01]}  Nf6 {[%clk 0:03:02]} 5. Nc3 {[%clk 0:03:02]}  a6 {[%clk 0:03:02]} 6. Be2 {[%clk 0:03:03]}  e5 {[%clk 0:03:03]} 7. Nb3 {[%clk 0:03:03]}  Be7 {[%clk 0:03:03]} 8. h4 {[%clk 0:03:03]}  Be6 {[%clk 0:03:00]} 9. f4 {[%clk 0:03:03]}  exf4 {[%clk 0:02:36]} 10. Bxf4 {[%clk 0:03:03]}  d5 {[%clk 0:02:36]} 11. e5 {[%clk 0:02:45]}  Ne4 {[%clk 0:02:22]} 12. Nxe4 {[%clk 0:02:45]}  dxe4 {[%clk 0:02:23]} 13. Qxd8+ {[%clk 0:02:45]}  Bxd8 {[%clk 0:02:24]} 14. Nc5 {[%clk 0:02:46]}  Nd7 {[%clk 0:01:54]} 15. Nxb7 {[%clk 0:02:40]}  Bc7 {[%clk 0:01:52]} 16. Nd6+ {[%clk 0:02:40]}  Ke7 {[%clk 0:01:52]} 17. O-O-O {[%clk 0:02:37]}  Rhd8 {[%clk 0:01:52]} 18. Nxe4 {[%clk 0:02:12]}  Nxe5 {[%clk 0:01:51]} 19. Be3 {[%clk 0:02:09]}  Bd5 {[%clk 0:01:44]} 20. Bc5+ {[%clk 0:02:05]}  Ke8 {[%clk 0:01:41]} 21. Nd6+ {[%clk 0:01:57]}  Bxd6 {[%clk 0:01:36]} 22. Rxd5 {[%clk 0:01:57]}  Bxc5 {[%clk 0:01:37]} 23. Rxc5 {[%clk 0:01:58]}  f6 {[%clk 0:01:37]} 24. h5 {[%clk 0:01:55]}  a5 {[%clk 0:01:35]} 25. Rc7 {[%clk 0:01:50]}  Rd7 {[%clk 0:01:35]} 26. Bb5 {[%clk 0:01:50]} 1-0


[Site "https://www.chess.com"]

[Event "Titled Tuesday Blitz September 27 Early 2022"]
[White "Vignesh, N R"]
[Black "Howell, David W L"]
[WhiteFideId "25012215"]
[BlackFideId "410608"]
[WhiteElo "2363"]
[BlackElo "2559"]
[Result "0-1"]
[Round "07"]
[TimeControl "180+1"]
[Date "2022.09.27"]
[WhiteClock "0:00:30"]
[BlackClock "0:00:13"]

1. e4 {[%clk 0:03:00]}  g6 {[%clk 0:02:55]} 2. d4 {[%clk 0:02:58]}  Bg7 {[%clk 0:02:56]} 3. Bc4 {[%clk 0:02:57]}  c6 {[%clk 0:02:53]} 4. Nc3 {[%clk 0:02:42]}  b5 {[%clk 0:02:51]} 5. Bb3 {[%clk 0:02:39]}  a5 {[%clk 0:02:52]} 6. a4 {[%clk 0:02:39]}  b4 {[%clk 0:02:50]} 7. Nce2 {[%clk 0:02:39]}  d5 {[%clk 0:02:40]} 8. exd5 {[%clk 0:02:29]}  cxd5 {[%clk 0:02:40]} 9. Nf4 {[%clk 0:02:30]}  Nf6 {[%clk 0:02:29]} 10. Qf3 {[%clk 0:02:26]}  Bg4 {[%clk 0:02:05]} 11. Qg3 {[%clk 0:02:19]}  Nc6 {[%clk 0:02:03]} 12. Be3 {[%clk 0:02:17]}  h5 {[%clk 0:01:52]} 13. f3 {[%clk 0:02:17]}  Bf5 {[%clk 0:01:48]} 14. Nge2 {[%clk 0:02:13]}  Rc8 {[%clk 0:01:47]} 15. Qf2 {[%clk 0:02:12]}  Qd6 {[%clk 0:01:38]} 16. O-O {[%clk 0:02:07]}  O-O {[%clk 0:01:35]} 17. Ng3 {[%clk 0:02:01]}  e6 {[%clk 0:01:33]} 18. Nxf5 {[%clk 0:02:00]}  exf5 {[%clk 0:01:31]} 19. Nd3 {[%clk 0:01:59]}  Nd7 {[%clk 0:01:30]} 20. Rad1 {[%clk 0:01:36]}  Nb6 {[%clk 0:01:22]} 21. Bf4 {[%clk 0:01:33]}  Qd8 {[%clk 0:01:19]} 22. Ne5 {[%clk 0:01:28]}  Re8 {[%clk 0:01:19]} 23. Rfe1 {[%clk 0:01:25]}  Re6 {[%clk 0:01:16]} 24. Re2 {[%clk 0:01:18]}  Qe8 {[%clk 0:00:45]} 25. Rde1 {[%clk 0:01:15]}  Nd8 {[%clk 0:00:46]} 26. Qg3 {[%clk 0:01:05]}  Nxa4 {[%clk 0:00:39]} 27. Bxa4 {[%clk 0:00:48]}  Qxa4 {[%clk 0:00:40]} 28. Nxf7 {[%clk 0:00:46]}  Kxf7 {[%clk 0:00:20]} 29. Rxe6 {[%clk 0:00:43]}  Nxe6 {[%clk 0:00:21]} 30. Rxe6 {[%clk 0:00:37]}  Kxe6 {[%clk 0:00:22]} 31. Qxg6+ {[%clk 0:00:37]}  Bf6 {[%clk 0:00:22]} 32. Be5 {[%clk 0:00:36]}  Qa1+ {[%clk 0:00:17]} 33. Kf2 {[%clk 0:00:35]}  Rxc2+ {[%clk 0:00:17]} 34. Kg3 {[%clk 0:00:30]}  Qe1+ {[%clk 0:00:17]} 35. Kf4 {[%clk 0:00:30]}  Qd2+ {[%clk 0:00:13]} 36. Kg3 {[%clk 0:00:30]}  Qxg2+ {[%clk 0:00:13]} 0-1


[Site "https://www.chess.com"]

[Event "Titled Tuesday Blitz September 27 Early 2022"]
[White "Zanette, Edgard Vinicius"]
[Black "Baches Garcia, Guillermo"]
[WhiteFideId "2109263"]
[BlackFideId "2209764"]
[WhiteElo "2182"]
[BlackElo "2416"]
[Result "1/2-1/2"]
[Round "07"]
[TimeControl "180+1"]
[Date "2022.09.27"]
[WhiteClock "0:00:22"]
[BlackClock "0:00:07"]

1. e4 {[%clk 0:03:00]}  c5 {[%clk 0:02:59]} 2. Nc3 {[%clk 0:02:56]}  Nc6 {[%clk 0:02:59]} 3. f4 {[%clk 0:02:51]}  g6 {[%clk 0:02:58]} 4. Nf3 {[%clk 0:02:45]}  Bg7 {[%clk 0:02:58]} 5. Bb5 {[%clk 0:02:45]}  Nd4 {[%clk 0:02:57]} 6. O-O {[%clk 0:02:43]}  a6 {[%clk 0:02:43]} 7. Bd3 {[%clk 0:02:42]}  e6 {[%clk 0:02:31]} 8. e5 {[%clk 0:02:36]}  d5 {[%clk 0:02:19]} 9. Nxd4 {[%clk 0:02:33]}  cxd4 {[%clk 0:02:20]} 10. Ne2 {[%clk 0:02:33]}  Qb6 {[%clk 0:02:19]} 11. b3 {[%clk 0:02:27]}  Ne7 {[%clk 0:02:19]} 12. Ba3 {[%clk 0:02:25]}  Nc6 {[%clk 0:02:12]} 13. Bd6 {[%clk 0:02:09]}  Bf8 {[%clk 0:02:07]} 14. Bxf8 {[%clk 0:02:07]}  Rxf8 {[%clk 0:01:56]} 15. a3 {[%clk 0:02:06]}  Bd7 {[%clk 0:01:52]} 16. Qe1 {[%clk 0:01:57]}  f5 {[%clk 0:01:34]} 17. exf6 {[%clk 0:01:50]}  Rxf6 {[%clk 0:01:33]} 18. Qh4 {[%clk 0:01:46]}  Rf7 {[%clk 0:01:18]} 19. Kh1 {[%clk 0:01:27]}  Qd8 {[%clk 0:01:17]} 20. Qxd8+ {[%clk 0:01:20]}  Rxd8 {[%clk 0:01:14]} 21. g3 {[%clk 0:01:19]}  Ke7 {[%clk 0:01:10]} 22. h4 {[%clk 0:01:14]}  Kd6 {[%clk 0:01:08]} 23. Rae1 {[%clk 0:01:10]}  b5 {[%clk 0:01:05]} 24. Kg2 {[%clk 0:01:09]}  Bc8 {[%clk 0:01:00]} 25. Ng1 {[%clk 0:01:05]}  e5 {[%clk 0:00:50]} 26. fxe5+ {[%clk 0:01:04]}  Nxe5 {[%clk 0:00:45]} 27. Rxf7 {[%clk 0:00:56]}  Nxf7 {[%clk 0:00:46]} 28. Nf3 {[%clk 0:00:55]}  Bg4 {[%clk 0:00:41]} 29. Nxd4 {[%clk 0:00:54]}  Ne5 {[%clk 0:00:40]} 30. Be2 {[%clk 0:00:50]}  Bd7 {[%clk 0:00:39]} 31. Rf1 {[%clk 0:00:42]}  Re8 {[%clk 0:00:34]} 32. Bd1 {[%clk 0:00:41]}  Re7 {[%clk 0:00:33]} 33. Rf6+ {[%clk 0:00:40]}  Kc7 {[%clk 0:00:30]} 34. Rxa6 {[%clk 0:00:37]}  Nc6 {[%clk 0:00:30]} 35. Nxc6 {[%clk 0:00:36]}  Bxc6 {[%clk 0:00:30]} 36. Ra7+ {[%clk 0:00:35]}  Bb7 {[%clk 0:00:29]} 37. b4 {[%clk 0:00:30]}  Kb6 {[%clk 0:00:22]} 38. Ra5 {[%clk 0:00:29]}  d4+ {[%clk 0:00:21]} 39. Kf2 {[%clk 0:00:27]}  Rf7+ {[%clk 0:00:19]} 40. Kg1 {[%clk 0:00:27]}  Bc6 {[%clk 0:00:15]} 41. Be2 {[%clk 0:00:25]}  Re7 {[%clk 0:00:15]} 42. Bd3 {[%clk 0:00:24]}  Rf7 {[%clk 0:00:09]} 43. a4 {[%clk 0:00:22]}  bxa4 {[%clk 0:00:09]} 44. Rc5 {[%clk 0:00:22]}  a3 {[%clk 0:00:05]} 45. Ra5 {[%clk 0:00:22]}  Ra7 {[%clk 0:00:05]} 46. Rxa7 {[%clk 0:00:22]}  Kxa7 {[%clk 0:00:05]} 47. Bc4 {[%clk 0:00:23]}  Kb6 {[%clk 0:00:05]} 48. c3 {[%clk 0:00:23]}  dxc3 {[%clk 0:00:05]} 49. dxc3 {[%clk 0:00:23]}  Be4 {[%clk 0:00:05]} 50. Ba2 {[%clk 0:00:23]}  Kb5 {[%clk 0:00:05]} 51. Kf2 {[%clk 0:00:22]}  Bd3 {[%clk 0:00:05]} 52. Ke3 {[%clk 0:00:21]}  Bc4 {[%clk 0:00:05]} 53. Bb1 {[%clk 0:00:21]}  a2 {[%clk 0:00:06]} 54. Bxa2 {[%clk 0:00:21]}  Bxa2 {[%clk 0:00:06]} 55. Kd4 {[%clk 0:00:22]}  h5 {[%clk 0:00:06]} 56. Ke5 {[%clk 0:00:21]}  Bc4 {[%clk 0:00:06]} 57. Kd4 {[%clk 0:00:21]}  Bb3 {[%clk 0:00:06]} 58. Kd3 {[%clk 0:00:21]}  Bc4+ {[%clk 0:00:07]} 59. Kd4 {[%clk 0:00:21]}  Bb3 {[%clk 0:00:07]} 60. Kd3 {[%clk 0:00:22]}  Be6 {[%clk 0:00:07]} 61. Kd4 {[%clk 0:00:22]}  Bc4 {[%clk 0:00:07]} 62. Ke3 {[%clk 0:00:21]}  Be6 {[%clk 0:00:08]} 63. Kd4 {[%clk 0:00:22]}  Bb3 {[%clk 0:00:07]} 1/2-1/2


[Site "https://www.chess.com"]

[Event "Titled Tuesday Blitz September 27 Early 2022"]
[White "Zhigalko, Sergei"]
[Black "Kravtsiv, Martyn"]
[WhiteFideId "13502956"]
[BlackFideId "14113147"]
[WhiteElo "2662"]
[BlackElo "2694"]
[Result "0-1"]
[Round "07"]
[TimeControl "180+1"]
[Date "2022.09.27"]
[WhiteClock "0:00:02"]
[BlackClock "0:00:16"]

1. e4 {[%clk 0:03:00]}  e5 {[%clk 0:02:59]} 2. Nf3 {[%clk 0:03:00]}  Nc6 {[%clk 0:03:00]} 3. Bb5 {[%clk 0:02:59]}  a6 {[%clk 0:03:00]} 4. Ba4 {[%clk 0:02:59]}  Nf6 {[%clk 0:03:00]} 5. O-O {[%clk 0:02:59]}  b5 {[%clk 0:02:59]} 6. Bb3 {[%clk 0:02:59]}  Be7 {[%clk 0:03:00]} 7. a4 {[%clk 0:02:59]}  b4 {[%clk 0:02:59]} 8. d3 {[%clk 0:02:58]}  d6 {[%clk 0:02:56]} 9. a5 {[%clk 0:02:55]}  O-O {[%clk 0:02:55]} 10. Nbd2 {[%clk 0:02:54]}  Rb8 {[%clk 0:02:54]} 11. Bc4 {[%clk 0:02:54]}  Be6 {[%clk 0:02:45]} 12. Re1 {[%clk 0:02:53]}  Qc8 {[%clk 0:02:33]} 13. b3 {[%clk 0:02:40]}  h6 {[%clk 0:02:08]} 14. Bb2 {[%clk 0:02:32]}  Nh5 {[%clk 0:01:43]} 15. Bxe6 {[%clk 0:01:48]}  Qxe6 {[%clk 0:01:34]} 16. Nxe5 {[%clk 0:01:48]}  dxe5 {[%clk 0:01:28]} 17. Qxh5 {[%clk 0:01:48]}  Rb5 {[%clk 0:01:25]} 18. Nc4 {[%clk 0:01:48]}  Bc5 {[%clk 0:01:26]} 19. Qf5 {[%clk 0:01:14]}  Qxf5 {[%clk 0:01:06]} 20. exf5 {[%clk 0:01:14]}  f6 {[%clk 0:01:07]} 21. Re4 {[%clk 0:01:02]}  Rd8 {[%clk 0:01:00]} 22. g4 {[%clk 0:00:59]}  Rd5 {[%clk 0:00:58]} 23. Kg2 {[%clk 0:00:55]}  Bf8 {[%clk 0:00:50]} 24. f4 {[%clk 0:00:50]}  exf4 {[%clk 0:00:50]} 25. Rxf4 {[%clk 0:00:41]}  Nxa5 {[%clk 0:00:49]} 26. Re4 {[%clk 0:00:36]}  Nb7 {[%clk 0:00:25]} 27. Re8 {[%clk 0:00:29]}  a5 {[%clk 0:00:25]} 28. Ra8 {[%clk 0:00:25]}  Kf7 {[%clk 0:00:24]} 29. h3 {[%clk 0:00:21]}  h5 {[%clk 0:00:22]} 30. Re1 {[%clk 0:00:12]}  Nd6 {[%clk 0:00:22]} 31. Ra1 {[%clk 0:00:07]}  Nb7 {[%clk 0:00:21]} 32. Kf3 {[%clk 0:00:08]}  Rbc5 {[%clk 0:00:19]} 33. Ra7 {[%clk 0:00:05]}  Nd6 {[%clk 0:00:17]} 34. Nxa5 {[%clk 0:00:02]}  Rxc2 {[%clk 0:00:16]} 0-1


[Site "https://www.chess.com"]

[Event "Titled Tuesday Blitz September 27 Early 2022"]
[White "Abdisalimov, Abdimalik"]
[Black "Riehle, Marco"]
[WhiteFideId "14206323"]
[BlackFideId "12904392"]
[WhiteElo "2401"]
[BlackElo "2462"]
[Result "1-0"]
[Round "08"]
[TimeControl "180+1"]
[Date "2022.09.27"]
[WhiteClock "0:00:29"]
[BlackClock "0:01:33"]

1. d4 {[%clk 0:03:00]}  d5 {[%clk 0:02:59]} 2. c4 {[%clk 0:03:01]}  e6 {[%clk 0:02:57]} 3. Nc3 {[%clk 0:03:00]}  c5 {[%clk 0:02:57]} 4. cxd5 {[%clk 0:03:01]}  cxd4 {[%clk 0:02:56]} 5. Qa4+ {[%clk 0:02:58]}  Bd7 {[%clk 0:02:57]} 6. Qxd4 {[%clk 0:02:57]}  exd5 {[%clk 0:02:58]} 7. Nf3 {[%clk 0:02:57]}  Nc6 {[%clk 0:02:54]} 8. Qd1 {[%clk 0:02:57]}  Nf6 {[%clk 0:02:54]} 9. e3 {[%clk 0:02:53]}  Bd6 {[%clk 0:02:51]} 10. h3 {[%clk 0:02:47]}  O-O {[%clk 0:02:50]} 11. Be2 {[%clk 0:02:44]}  Rc8 {[%clk 0:02:48]} 12. O-O {[%clk 0:02:43]}  Bf5 {[%clk 0:02:46]} 13. b3 {[%clk 0:02:36]}  Qe7 {[%clk 0:02:37]} 14. Bb2 {[%clk 0:02:35]}  Ne5 {[%clk 0:02:36]} 15. Nxd5 {[%clk 0:02:25]}  Nxd5 {[%clk 0:02:35]} 16. Qxd5 {[%clk 0:02:26]}  Nxf3+ {[%clk 0:02:32]} 17. Bxf3 {[%clk 0:02:22]}  Bg6 {[%clk 0:02:32]} 18. Qxb7 {[%clk 0:02:18]}  Rc7 {[%clk 0:02:27]} 19. Qa6 {[%clk 0:02:06]}  h6 {[%clk 0:02:22]} 20. Rad1 {[%clk 0:01:52]}  Be5 {[%clk 0:02:20]} 21. Bxe5 {[%clk 0:01:51]}  Qxe5 {[%clk 0:02:21]} 22. Qd6 {[%clk 0:01:51]}  Qc3 {[%clk 0:02:16]} 23. Rd4 {[%clk 0:01:36]}  Rfc8 {[%clk 0:02:13]} 24. Rfd1 {[%clk 0:01:31]}  Qb2 {[%clk 0:02:11]} 25. R1d2 {[%clk 0:01:18]}  Rc1+ {[%clk 0:02:09]} 26. Kh2 {[%clk 0:01:18]}  Qb1 {[%clk 0:02:06]} 27. Bd5 {[%clk 0:01:15]}  Rh1+ {[%clk 0:02:03]} 28. Kg3 {[%clk 0:00:59]}  Qf5 {[%clk 0:01:54]} 29. Qf4 {[%clk 0:00:52]}  Qh5 {[%clk 0:01:50]} 30. Bf3 {[%clk 0:00:45]}  Qa5 {[%clk 0:01:49]} 31. Bg4 {[%clk 0:00:36]}  Re8 {[%clk 0:01:45]} 32. b4 {[%clk 0:00:35]}  Qb5 {[%clk 0:01:40]} 33. Bd7 {[%clk 0:00:35]}  Qf1 {[%clk 0:01:35]} 34. Bxe8 {[%clk 0:00:35]}  Qg1 {[%clk 0:01:35]} 35. Bxf7+ {[%clk 0:00:29]}  Bxf7 {[%clk 0:01:34]} 36. Rd8+ {[%clk 0:00:29]}  Kh7 {[%clk 0:01:35]} 37. Qxf7 {[%clk 0:00:29]}  Qh2+ {[%clk 0:01:32]} 38. Kf3 {[%clk 0:00:29]}  Qe5 {[%clk 0:01:33]} 39. Qg8+ {[%clk 0:00:27]}  Kg6 {[%clk 0:01:33]} 40. R8d6+ {[%clk 0:00:28]}  Kh5 {[%clk 0:01:33]} 41. R2d5 {[%clk 0:00:29]} 1-0


[Site "https://www.chess.com"]

[Event "Titled Tuesday Blitz September 27 Early 2022"]
[White "Adewumi, Tanitoluwa"]
[Black "Khamdamova, Afruza"]
[WhiteFideId "30966396"]
[BlackFideId "14210444"]
[WhiteElo "2571"]
[BlackElo "1668"]
[Result "0-1"]
[Round "08"]
[TimeControl "180+1"]
[Date "2022.09.27"]
[WhiteClock "0:00:02"]
[BlackClock "0:00:16"]

1. Nf3 {[%clk 0:02:54]}  Nf6 {[%clk 0:02:59]} 2. b3 {[%clk 0:02:53]}  g6 {[%clk 0:02:58]} 3. Bb2 {[%clk 0:02:54]}  Bg7 {[%clk 0:02:58]} 4. e3 {[%clk 0:02:54]}  b6 {[%clk 0:02:58]} 5. Be2 {[%clk 0:02:54]}  Bb7 {[%clk 0:02:58]} 6. O-O {[%clk 0:02:55]}  O-O {[%clk 0:02:58]} 7. d4 {[%clk 0:02:55]}  d6 {[%clk 0:02:58]} 8. Nbd2 {[%clk 0:02:56]}  c5 {[%clk 0:02:58]} 9. Rc1 {[%clk 0:02:55]}  Nbd7 {[%clk 0:02:57]} 10. c4 {[%clk 0:02:54]}  Qc7 {[%clk 0:02:41]} 11. d5 {[%clk 0:02:53]}  e6 {[%clk 0:02:39]} 12. e4 {[%clk 0:02:52]}  e5 {[%clk 0:02:37]} 13. Ne1 {[%clk 0:02:47]}  Bh6 {[%clk 0:02:33]} 14. f3 {[%clk 0:02:36]}  a6 {[%clk 0:02:27]} 15. Nd3 {[%clk 0:02:26]}  Rae8 {[%clk 0:02:24]} 16. Rc2 {[%clk 0:02:09]}  Nh5 {[%clk 0:02:23]} 17. g3 {[%clk 0:02:00]}  Ng7 {[%clk 0:02:10]} 18. f4 {[%clk 0:01:59]}  f5 {[%clk 0:02:07]} 19. fxe5 {[%clk 0:01:58]}  Nxe5 {[%clk 0:02:06]} 20. Nxe5 {[%clk 0:01:57]}  dxe5 {[%clk 0:02:06]} 21. exf5 {[%clk 0:01:58]}  Nxf5 {[%clk 0:02:03]} 22. Ne4 {[%clk 0:01:49]}  Ne3 {[%clk 0:01:41]} 23. Qd3 {[%clk 0:01:41]}  Nxf1 {[%clk 0:01:36]} 24. Bxf1 {[%clk 0:01:39]}  Bg7 {[%clk 0:01:18]} 25. Bh3 {[%clk 0:01:36]}  Bc8 {[%clk 0:01:17]} 26. d6 {[%clk 0:01:31]}  Qf7 {[%clk 0:00:59]} 27. d7 {[%clk 0:01:29]}  Rd8 {[%clk 0:00:45]} 28. Rf2 {[%clk 0:00:44]}  Rxd7 {[%clk 0:00:31]} 29. Rxf7 {[%clk 0:00:35]}  Rxd3 {[%clk 0:00:31]} 30. Rxf8+ {[%clk 0:00:31]}  Kxf8 {[%clk 0:00:31]} 31. Bxc8 {[%clk 0:00:29]}  Rd1+ {[%clk 0:00:31]} 32. Kg2 {[%clk 0:00:26]}  Re1 {[%clk 0:00:31]} 33. Kf3 {[%clk 0:00:23]}  a5 {[%clk 0:00:31]} 34. Bc3 {[%clk 0:00:18]}  Rh1 {[%clk 0:00:29]} 35. h3 {[%clk 0:00:17]}  Rh2 {[%clk 0:00:27]} 36. a4 {[%clk 0:00:15]}  Rc2 {[%clk 0:00:25]} 37. Bd7 {[%clk 0:00:11]}  Rc1 {[%clk 0:00:25]} 38. Bb5 {[%clk 0:00:11]}  Rb1 {[%clk 0:00:25]} 39. Bd2 {[%clk 0:00:09]}  Rxb3+ {[%clk 0:00:24]} 40. Ke2 {[%clk 0:00:08]}  Rb2 {[%clk 0:00:23]} 41. Kd3 {[%clk 0:00:08]}  Ke7 {[%clk 0:00:22]} 42. Bg5+ {[%clk 0:00:08]}  Ke6 {[%clk 0:00:22]} 43. Bd8 {[%clk 0:00:08]}  Rb3+ {[%clk 0:00:20]} 44. Ke2 {[%clk 0:00:05]}  Bh6 {[%clk 0:00:20]} 45. Kf2 {[%clk 0:00:02]}  Re3 {[%clk 0:00:19]} 46. Nd2 {[%clk 0:00:01]}  Rd3 {[%clk 0:00:18]} 47. Nf3 {[%clk 0:00:02]}  Rxd8 {[%clk 0:00:17]} 48. Bc6 {[%clk 0:00:01]}  Rd6 {[%clk 0:00:17]} 49. Be4 {[%clk 0:00:01]}  Rd1 {[%clk 0:00:16]} 50. Ke2 {[%clk 0:00:02]}  Rc1 {[%clk 0:00:16]} 51. Bd5+ {[%clk 0:00:02]}  Kd6 {[%clk 0:00:16]} 52. h4 {[%clk 0:00:03]}  Ra1 {[%clk 0:00:16]} 53. Ne1 {[%clk 0:00:03]}  Rxa4 {[%clk 0:00:16]} 54. Nd3 {[%clk 0:00:03]}  Ra2+ {[%clk 0:00:16]} 55. Kf3 {[%clk 0:00:04]}  a4 {[%clk 0:00:16]} 56. Nf2 {[%clk 0:00:04]}  a3 {[%clk 0:00:16]} 57. Ne4+ {[%clk 0:00:05]}  Ke7 {[%clk 0:00:17]} 58. Nc3 {[%clk 0:00:04]}  Rc2 {[%clk 0:00:17]} 59. Nb5 {[%clk 0:00:01]}  a2 {[%clk 0:00:17]} 60. Be4 {[%clk 0:00:02]}  Rc1 {[%clk 0:00:16]} 0-1


[Site "https://www.chess.com"]

[Event "Titled Tuesday Blitz September 27 Early 2022"]
[White "Al-Tarboush, Ward"]
[Black "Averjanov, Alexey"]
[WhiteFideId "7601450"]
[BlackFideId "14109867"]
[WhiteElo "2234"]
[BlackElo "2650"]
[Result "1-0"]
[Round "08"]
[TimeControl "180+1"]
[Date "2022.09.27"]
[WhiteClock "0:00:13"]
[BlackClock "0:00:06"]

1. e4 {[%clk 0:03:00]}  c6 {[%clk 0:03:00]} 2. Nf3 {[%clk 0:03:01]}  d5 {[%clk 0:03:00]} 3. Nc3 {[%clk 0:03:02]}  Bg4 {[%clk 0:03:00]} 4. h3 {[%clk 0:03:01]}  Bxf3 {[%clk 0:03:01]} 5. Qxf3 {[%clk 0:03:02]}  e6 {[%clk 0:03:01]} 6. d3 {[%clk 0:03:01]}  Nf6 {[%clk 0:03:00]} 7. Bd2 {[%clk 0:03:00]}  Qb6 {[%clk 0:02:58]} 8. O-O-O {[%clk 0:02:51]}  d4 {[%clk 0:02:58]} 9. Ne2 {[%clk 0:02:51]}  c5 {[%clk 0:02:58]} 10. g4 {[%clk 0:02:50]}  Nc6 {[%clk 0:02:58]} 11. g5 {[%clk 0:02:50]}  Nd7 {[%clk 0:02:58]} 12. Kb1 {[%clk 0:02:46]}  O-O-O {[%clk 0:02:52]} 13. Qg3 {[%clk 0:02:35]}  c4 {[%clk 0:02:51]} 14. dxc4 {[%clk 0:02:34]}  Nc5 {[%clk 0:02:51]} 15. Nc1 {[%clk 0:02:34]}  Nxe4 {[%clk 0:02:46]} 16. Qf3 {[%clk 0:02:20]}  Nc3+ {[%clk 0:02:05]} 17. Bxc3 {[%clk 0:02:20]}  dxc3 {[%clk 0:02:06]} 18. Rxd8+ {[%clk 0:02:21]}  Qxd8 {[%clk 0:02:01]} 19. Qxc3 {[%clk 0:02:22]}  Qxg5 {[%clk 0:01:49]} 20. Bd3 {[%clk 0:02:15]}  Bb4 {[%clk 0:01:47]} 21. Qb3 {[%clk 0:02:16]}  Rd8 {[%clk 0:01:41]} 22. a3 {[%clk 0:02:15]}  Be7 {[%clk 0:01:34]} 23. Be4 {[%clk 0:02:14]}  Bf6 {[%clk 0:01:27]} 24. Bxc6 {[%clk 0:02:13]}  bxc6 {[%clk 0:01:28]} 25. Nd3 {[%clk 0:02:08]}  Qg2 {[%clk 0:01:23]} 26. Rc1 {[%clk 0:02:07]}  Qxh3 {[%clk 0:01:19]} 27. Qa4 {[%clk 0:02:07]}  Qh2 {[%clk 0:01:09]} 28. Qxc6+ {[%clk 0:02:04]}  Qc7 {[%clk 0:01:09]} 29. Qa8+ {[%clk 0:01:57]}  Qb8 {[%clk 0:01:05]} 30. Qc6+ {[%clk 0:01:53]}  Qc7 {[%clk 0:01:00]} 31. Qe4 {[%clk 0:01:52]}  Rd4 {[%clk 0:00:56]} 32. Qa8+ {[%clk 0:01:52]}  Kd7 {[%clk 0:00:52]} 33. Rd1 {[%clk 0:01:36]}  Qxc4 {[%clk 0:00:49]} 34. Qxa7+ {[%clk 0:01:34]}  Ke8 {[%clk 0:00:45]} 35. Qb8+ {[%clk 0:01:26]}  Rd8 {[%clk 0:00:42]} 36. Qb6 {[%clk 0:01:12]}  Rc8 {[%clk 0:00:39]} 37. Nb4 {[%clk 0:01:02]}  h5 {[%clk 0:00:35]} 38. Qb7 {[%clk 0:00:38]}  h4 {[%clk 0:00:33]} 39. Qf3 {[%clk 0:00:39]}  Rd8 {[%clk 0:00:20]} 40. Re1 {[%clk 0:00:37]}  Qd4 {[%clk 0:00:15]} 41. c3 {[%clk 0:00:37]}  Qc4 {[%clk 0:00:13]} 42. Qh5 {[%clk 0:00:30]}  Rd2 {[%clk 0:00:09]} 43. a4 {[%clk 0:00:16]}  Qb3 {[%clk 0:00:09]} 44. Qb5+ {[%clk 0:00:15]}  Kf8 {[%clk 0:00:07]} 45. Qb8+ {[%clk 0:00:14]}  Ke7 {[%clk 0:00:07]} 46. Nc6+ {[%clk 0:00:13]}  Kd7 {[%clk 0:00:06]} 47. Qxb3 {[%clk 0:00:13]} 1-0


[Site "https://www.chess.com"]